[Event "Titled Tuesday Blitz July 20 2021"]
[White "Komiagina, Maria"]
[Black "Golubev, Mikhail"]
[WhiteFideId "4153987"]
[BlackFideId "14100983"]
[WhiteElo "2016"]
[BlackElo "2374"]
[Result "0-1"]
[Round "05"]
[TimeControl "180+1"]
[Date "2021.07.21"]
[WhiteClock "0:00:05"]
[BlackClock "0:00:21"]

1. e4 {[%clk 0:03:00]}  c5 {[%clk 0:02:56]} 2. Nf3 {[%clk 0:03:00]}  d6 {[%clk 0:02:54]} 3. d4 {[%clk 0:03:00]}  Nf6 {[%clk 0:02:55]} 4. Nc3 {[%clk 0:02:59]}  cxd4 {[%clk 0:02:55]} 5. Nxd4 {[%clk 0:02:59]}  Nc6 {[%clk 0:02:55]} 6. Bc4 {[%clk 0:02:56]}  e6 {[%clk 0:02:54]} 7. Bb3 {[%clk 0:02:54]}  a6 {[%clk 0:02:52]} 8. Be3 {[%clk 0:02:54]}  Qc7 {[%clk 0:02:52]} 9. O-O {[%clk 0:02:53]}  Na5 {[%clk 0:02:50]} 10. f4 {[%clk 0:02:50]}  b5 {[%clk 0:02:49]} 11. f5 {[%clk 0:02:45]}  e5 {[%clk 0:02:40]} 12. Nde2 {[%clk 0:02:25]}  Nc4 {[%clk 0:02:39]} 13. Bg5 {[%clk 0:02:09]}  Bb7 {[%clk 0:02:26]} 14. Bxf6 {[%clk 0:01:50]}  gxf6 {[%clk 0:02:25]} 15. Bxc4 {[%clk 0:01:49]}  Qxc4 {[%clk 0:02:16]} 16. Ng3 {[%clk 0:01:48]}  b4 {[%clk 0:02:08]} 17. Nd5 {[%clk 0:01:38]}  Bxd5 {[%clk 0:02:06]} 18. exd5 {[%clk 0:01:30]}  Rc8 {[%clk 0:01:57]} 19. Rf2 {[%clk 0:01:29]}  Ke7 {[%clk 0:01:47]} 20. Qf3 {[%clk 0:01:21]}  Rc5 {[%clk 0:01:33]} 21. Rd1 {[%clk 0:01:18]}  Qxa2 {[%clk 0:01:32]} 22. Rfd2 {[%clk 0:00:27]}  Bh6 {[%clk 0:01:29]} 23. Re2 {[%clk 0:00:24]}  Rhc8 {[%clk 0:01:24]} 24. Qh5 {[%clk 0:00:17]}  Bf4 {[%clk 0:01:20]} 25. Ne4 {[%clk 0:00:15]}  Rxd5 {[%clk 0:01:10]} 26. Rf1 {[%clk 0:00:15]}  Qc4 {[%clk 0:00:58]} 27. Rxf4 {[%clk 0:00:13]}  Qd4+ {[%clk 0:00:31]} 28. Rff2 {[%clk 0:00:10]}  Qxb2 {[%clk 0:00:25]} 29. Qh4 {[%clk 0:00:08]}  Rd1+ {[%clk 0:00:22]} 30. Rf1 {[%clk 0:00:07]}  Qd4+ {[%clk 0:00:21]} 31. Rf2 {[%clk 0:00:05]}  Rxf1+ {[%clk 0:00:21]} 0-1


[Site "https://www.chess.com"]

[Event "Titled Tuesday Blitz July 20 2021"]
[White "Lagunow, Raphael"]
[Black "Kazakov, Mikhail"]
[WhiteFideId "24652644"]
[BlackFideId "14102749"]
[WhiteElo "2400"]
[BlackElo "2373"]
[Result "1-0"]
[Round "05"]
[TimeControl "180+1"]
[Date "2021.07.21"]
[WhiteClock "0:00:05"]
[BlackClock "0:00:06"]

1. e4 {[%clk 0:03:00]}  e5 {[%clk 0:02:58]} 2. Nf3 {[%clk 0:03:00]}  Nc6 {[%clk 0:02:58]} 3. Bc4 {[%clk 0:02:59]}  Nf6 {[%clk 0:02:57]} 4. Ng5 {[%clk 0:02:59]}  d5 {[%clk 0:02:56]} 5. exd5 {[%clk 0:02:58]}  Na5 {[%clk 0:02:55]} 6. Bb5+ {[%clk 0:02:58]}  c6 {[%clk 0:02:54]} 7. dxc6 {[%clk 0:02:59]}  bxc6 {[%clk 0:02:54]} 8. Bd3 {[%clk 0:03:00]}  h6 {[%clk 0:02:39]} 9. Ne4 {[%clk 0:02:53]}  Nd5 {[%clk 0:02:38]} 10. O-O {[%clk 0:02:43]}  Be7 {[%clk 0:02:37]} 11. Nbc3 {[%clk 0:02:26]}  O-O {[%clk 0:02:35]} 12. Re1 {[%clk 0:02:03]}  f5 {[%clk 0:02:29]} 13. Ng3 {[%clk 0:02:02]}  e4 {[%clk 0:02:24]} 14. Bf1 {[%clk 0:02:01]}  Bf6 {[%clk 0:02:19]} 15. f3 {[%clk 0:01:33]}  Bd4+ {[%clk 0:01:49]} 16. Kh1 {[%clk 0:01:33]}  Bf2 {[%clk 0:01:35]} 17. fxe4 {[%clk 0:01:26]}  Bxe1 {[%clk 0:01:29]} 18. Qxe1 {[%clk 0:01:26]}  fxe4 {[%clk 0:01:27]} 19. Ncxe4 {[%clk 0:01:27]}  Nb7 {[%clk 0:01:18]} 20. d3 {[%clk 0:01:20]}  Nd6 {[%clk 0:01:14]} 21. b3 {[%clk 0:01:05]}  Nf5 {[%clk 0:01:09]} 22. Nxf5 {[%clk 0:01:02]}  Bxf5 {[%clk 0:01:07]} 23. Bb2 {[%clk 0:01:02]}  Nf4 {[%clk 0:00:49]} 24. Qc3 {[%clk 0:00:38]}  Qc7 {[%clk 0:00:40]} 25. Nd6 {[%clk 0:00:17]}  Be6 {[%clk 0:00:31]} 26. Qe5 {[%clk 0:00:12]}  Rad8 {[%clk 0:00:24]} 27. Ne4 {[%clk 0:00:12]}  Qxe5 {[%clk 0:00:20]} 28. Bxe5 {[%clk 0:00:13]}  Ng6 {[%clk 0:00:20]} 29. Bd6 {[%clk 0:00:13]}  Rfe8 {[%clk 0:00:20]} 30. Bc5 {[%clk 0:00:12]}  Bd5 {[%clk 0:00:20]} 31. Nc3 {[%clk 0:00:11]}  Nf4 {[%clk 0:00:17]} 32. Nxd5 {[%clk 0:00:09]}  cxd5 {[%clk 0:00:18]} 33. Bxa7 {[%clk 0:00:09]}  d4 {[%clk 0:00:16]} 34. g3 {[%clk 0:00:06]}  Ne6 {[%clk 0:00:12]} 35. a4 {[%clk 0:00:05]}  Nc7 {[%clk 0:00:09]} 36. Bb6 {[%clk 0:00:03]}  Rc8 {[%clk 0:00:08]} 37. Bh3 {[%clk 0:00:03]}  Ne6 {[%clk 0:00:08]} 38. a5 {[%clk 0:00:03]}  Rc6 {[%clk 0:00:07]} 39. Bxe6+ {[%clk 0:00:02]}  Rexe6 {[%clk 0:00:06]} 40. Bxd4 {[%clk 0:00:02]}  Rxc2 {[%clk 0:00:05]} 41. a6 {[%clk 0:00:03]}  Ree2 {[%clk 0:00:05]} 42. a7 {[%clk 0:00:03]}  Rxh2+ {[%clk 0:00:04]} 43. Kg1 {[%clk 0:00:04]}  Rcg2+ {[%clk 0:00:03]} 44. Kf1 {[%clk 0:00:05]}  Rh1+ {[%clk 0:00:04]} 45. Kxg2 {[%clk 0:00:04]}  Rxa1 {[%clk 0:00:05]} 46. b4 {[%clk 0:00:05]}  Kf7 {[%clk 0:00:05]} 47. b5 {[%clk 0:00:05]}  Ke6 {[%clk 0:00:06]} 48. Bxa1 {[%clk 0:00:05]} 1-0


[Site "https://www.chess.com"]

[Event "Titled Tuesday Blitz July 20 2021"]
[White "Leve, Nitai"]
[Black "Mortazavi, Ali"]
[WhiteFideId "2006898"]
[BlackFideId "401323"]
[WhiteElo "2144"]
[BlackElo "2339"]
[Result "0-1"]
[Round "05"]
[TimeControl "180+1"]
[Date "2021.07.21"]
[WhiteClock "0:00:20"]
[BlackClock "0:00:12"]

1. e4 {[%clk 0:03:00]}  c6 {[%clk 0:03:00]} 2. d4 {[%clk 0:02:59]}  d5 {[%clk 0:03:00]} 3. e5 {[%clk 0:02:59]}  Bf5 {[%clk 0:03:00]} 4. h4 {[%clk 0:02:59]}  c5 {[%clk 0:03:00]} 5. g4 {[%clk 0:02:56]}  Bd7 {[%clk 0:03:00]} 6. c3 {[%clk 0:02:50]}  Nc6 {[%clk 0:02:58]} 7. Be3 {[%clk 0:02:40]}  Qb6 {[%clk 0:02:24]} 8. dxc5 {[%clk 0:02:17]}  Qxb2 {[%clk 0:02:24]} 9. Nd2 {[%clk 0:02:13]}  Qxc3 {[%clk 0:02:20]} 10. Rc1 {[%clk 0:02:05]}  Qxe5 {[%clk 0:02:13]} 11. Ngf3 {[%clk 0:02:05]}  Qc7 {[%clk 0:02:10]} 12. g5 {[%clk 0:01:59]}  e5 {[%clk 0:02:05]} 13. Nb3 {[%clk 0:01:58]}  d4 {[%clk 0:01:47]} 14. Bd2 {[%clk 0:01:58]}  Be6 {[%clk 0:01:31]} 15. Bb5 {[%clk 0:01:56]}  O-O-O {[%clk 0:01:18]} 16. Qe2 {[%clk 0:01:47]}  Bd5 {[%clk 0:01:05]} 17. Rg1 {[%clk 0:01:39]}  Nge7 {[%clk 0:00:55]} 18. Kd1 {[%clk 0:01:30]}  f6 {[%clk 0:00:52]} 19. gxf6 {[%clk 0:01:29]}  gxf6 {[%clk 0:00:52]} 20. Ne1 {[%clk 0:01:21]}  e4 {[%clk 0:00:46]} 21. Rg4 {[%clk 0:01:14]}  f5 {[%clk 0:00:46]} 22. Bf4 {[%clk 0:01:14]}  Ne5 {[%clk 0:00:36]} 23. Rg3 {[%clk 0:01:07]}  N7g6 {[%clk 0:00:34]} 24. Rxg6 {[%clk 0:00:59]}  hxg6 {[%clk 0:00:33]} 25. Nxd4 {[%clk 0:00:57]}  Bh6 {[%clk 0:00:22]} 26. Bxh6 {[%clk 0:00:51]}  Rxh6 {[%clk 0:00:22]} 27. Kc2 {[%clk 0:00:51]}  Kb8 {[%clk 0:00:19]} 28. Kb2 {[%clk 0:00:49]}  Rxh4 {[%clk 0:00:19]} 29. Qe3 {[%clk 0:00:46]}  f4 {[%clk 0:00:18]} 30. Qa3 {[%clk 0:00:44]}  a6 {[%clk 0:00:18]} 31. Bf1 {[%clk 0:00:43]}  Bf7 {[%clk 0:00:17]} 32. Nb3 {[%clk 0:00:41]}  e3 {[%clk 0:00:16]} 33. fxe3 {[%clk 0:00:41]}  fxe3 {[%clk 0:00:17]} 34. Rc3 {[%clk 0:00:39]}  Rh2+ {[%clk 0:00:17]} 35. Kb1 {[%clk 0:00:36]}  e2 {[%clk 0:00:15]} 36. Bxe2 {[%clk 0:00:33]}  Rxe2 {[%clk 0:00:15]} 37. Rc1 {[%clk 0:00:34]}  Nc4 {[%clk 0:00:13]} 38. Qb4 {[%clk 0:00:33]}  Qf4 {[%clk 0:00:13]} 39. Na5 {[%clk 0:00:22]}  Qe4+ {[%clk 0:00:13]} 40. Ka1 {[%clk 0:00:21]}  Nxa5 {[%clk 0:00:13]} 41. Qxa5 {[%clk 0:00:20]}  Rxa2+ {[%clk 0:00:12]} 42. Qxa2 {[%clk 0:00:19]}  Bxa2 {[%clk 0:00:13]} 43. Kxa2 {[%clk 0:00:20]}  Rd2+ {[%clk 0:00:13]} 44. Kb3 {[%clk 0:00:20]}  Qe3+ {[%clk 0:00:13]} 45. Rc3 {[%clk 0:00:18]}  Qxe1 {[%clk 0:00:12]} 46. c6 {[%clk 0:00:19]}  Qb1+ {[%clk 0:00:11]} 47. Kc4 {[%clk 0:00:19]}  Rc2 {[%clk 0:00:11]} 48. Kc5 {[%clk 0:00:20]}  Rxc3+ {[%clk 0:00:12]} 0-1


[Site "https://www.chess.com"]

[Event "Titled Tuesday Blitz July 20 2021"]
[White "Levine, Joseph"]
[Black "Harshavardhan G B"]
[WhiteFideId "30940346"]
[BlackFideId "25059009"]
[WhiteElo "1802"]
[BlackElo "1825"]
[Result "0-1"]
[Round "05"]
[TimeControl "180+1"]
[Date "2021.07.21"]
[WhiteClock "0:00:01"]
[BlackClock "0:00:19"]

1. e4 {[%clk 0:03:00]}  c5 {[%clk 0:02:58]} 2. Nf3 {[%clk 0:02:58]}  d6 {[%clk 0:02:56]} 3. d4 {[%clk 0:02:56]}  cxd4 {[%clk 0:02:57]} 4. Nxd4 {[%clk 0:02:57]}  Nf6 {[%clk 0:02:57]} 5. Nc3 {[%clk 0:02:56]}  Nc6 {[%clk 0:02:57]} 6. Bc4 {[%clk 0:02:55]}  e6 {[%clk 0:02:56]} 7. O-O {[%clk 0:02:53]}  Be7 {[%clk 0:02:56]} 8. Be3 {[%clk 0:02:53]}  O-O {[%clk 0:02:56]} 9. h3 {[%clk 0:02:52]}  a6 {[%clk 0:02:56]} 10. f4 {[%clk 0:02:51]}  Nxd4 {[%clk 0:02:55]} 11. Bxd4 {[%clk 0:02:52]}  b5 {[%clk 0:02:55]} 12. Bd3 {[%clk 0:02:52]}  Bb7 {[%clk 0:02:55]} 13. Qe2 {[%clk 0:02:42]}  Nd7 {[%clk 0:02:46]} 14. Kh1 {[%clk 0:02:27]}  e5 {[%clk 0:02:43]} 15. Bg1 {[%clk 0:02:25]}  exf4 {[%clk 0:02:41]} 16. Rxf4 {[%clk 0:02:24]}  Ne5 {[%clk 0:02:41]} 17. Raf1 {[%clk 0:02:22]}  Bg5 {[%clk 0:02:28]} 18. R4f2 {[%clk 0:02:00]}  Bh4 {[%clk 0:02:26]} 19. Rf4 {[%clk 0:01:58]}  Bg3 {[%clk 0:02:21]} 20. Rf5 {[%clk 0:01:57]}  Bc8 {[%clk 0:02:20]} 21. Rh5 {[%clk 0:01:48]}  g6 {[%clk 0:02:17]} 22. Nd5 {[%clk 0:01:23]}  f5 {[%clk 0:01:48]} 23. Bb6 {[%clk 0:01:05]}  Qd7 {[%clk 0:01:40]} 24. Rh6 {[%clk 0:00:38]}  Bb7 {[%clk 0:01:30]} 25. Qe3 {[%clk 0:00:31]}  Bxd5 {[%clk 0:01:24]} 26. Qxg3 {[%clk 0:00:28]}  fxe4 {[%clk 0:01:22]} 27. Be2 {[%clk 0:00:21]}  Rxf1+ {[%clk 0:01:19]} 28. Bxf1 {[%clk 0:00:22]}  Rf8 {[%clk 0:01:19]} 29. Be2 {[%clk 0:00:21]}  Qf5 {[%clk 0:00:40]} 30. Rh5 {[%clk 0:00:18]}  Qe6 {[%clk 0:00:36]} 31. Bd4 {[%clk 0:00:13]}  Nc6 {[%clk 0:00:29]} 32. Bc3 {[%clk 0:00:11]}  Bc4 {[%clk 0:00:28]} 33. Bg4 {[%clk 0:00:08]}  Qe7 {[%clk 0:00:25]} 34. Kh2 {[%clk 0:00:05]}  d5 {[%clk 0:00:22]} 35. Rh6 {[%clk 0:00:03]}  d4 {[%clk 0:00:21]} 36. Be1 {[%clk 0:00:03]}  Ne5 {[%clk 0:00:20]} 37. Bd1 {[%clk 0:00:02]}  Qf6 {[%clk 0:00:19]} 38. c3 {[%clk 0:00:01]}  d3 {[%clk 0:00:19]} 0-1


[Site "https://www.chess.com"]

[Event "Titled Tuesday Blitz July 20 2021"]
[White "Manzone, Alessandro"]
[Black "Khusnutdinov, Rustam"]
[WhiteFideId "112488"]
[BlackFideId "13701703"]
[WhiteElo "2327"]
[BlackElo "2571"]
[Result "0-1"]
[Round "05"]
[TimeControl "180+1"]
[Date "2021.07.20"]
[WhiteClock "0:00:10"]
[BlackClock "0:00:32"]

1. d4 {[%clk 0:02:57]}  d5 {[%clk 0:02:59]} 2. c4 {[%clk 0:02:57]}  e6 {[%clk 0:02:59]} 3. Nc3 {[%clk 0:02:56]}  a6 {[%clk 0:02:58]} 4. cxd5 {[%clk 0:02:53]}  exd5 {[%clk 0:02:59]} 5. Bf4 {[%clk 0:02:54]}  Nf6 {[%clk 0:02:56]} 6. e3 {[%clk 0:02:54]}  c5 {[%clk 0:02:57]} 7. dxc5 {[%clk 0:02:48]}  Bxc5 {[%clk 0:02:58]} 8. Nf3 {[%clk 0:02:49]}  Nc6 {[%clk 0:02:57]} 9. Be2 {[%clk 0:02:48]}  O-O {[%clk 0:02:57]} 10. O-O {[%clk 0:02:48]}  Re8 {[%clk 0:02:42]} 11. Nd4 {[%clk 0:02:47]}  Bxd4 {[%clk 0:02:37]} 12. exd4 {[%clk 0:02:48]}  Qb6 {[%clk 0:02:38]} 13. Bf3 {[%clk 0:02:40]}  Qxd4 {[%clk 0:02:23]} 14. Bg5 {[%clk 0:02:33]}  Ne4 {[%clk 0:02:16]} 15. Be3 {[%clk 0:02:06]}  Nxc3 {[%clk 0:02:02]} 16. Bxd4 {[%clk 0:01:38]}  Nxd1 {[%clk 0:01:59]} 17. Raxd1 {[%clk 0:01:39]}  Nxd4 {[%clk 0:01:38]} 18. Rxd4 {[%clk 0:01:39]}  Be6 {[%clk 0:01:39]} 19. Rfd1 {[%clk 0:01:30]}  Rad8 {[%clk 0:01:36]} 20. h3 {[%clk 0:01:21]}  Rd6 {[%clk 0:01:35]} 21. Rc1 {[%clk 0:01:15]}  Red8 {[%clk 0:01:33]} 22. Rc7 {[%clk 0:01:14]}  R6d7 {[%clk 0:01:33]} 23. Rc5 {[%clk 0:01:13]}  Kf8 {[%clk 0:01:32]} 24. b4 {[%clk 0:01:06]}  Ke7 {[%clk 0:01:30]} 25. Bd1 {[%clk 0:01:05]}  b6 {[%clk 0:01:21]} 26. Rc6 {[%clk 0:01:04]}  Rd6 {[%clk 0:01:21]} 27. Rc7+ {[%clk 0:01:04]}  R8d7 {[%clk 0:01:21]} 28. Rc3 {[%clk 0:01:00]}  Kf6 {[%clk 0:01:18]} 29. f4 {[%clk 0:01:00]}  Rd8 {[%clk 0:01:11]} 30. Bb3 {[%clk 0:00:52]}  h5 {[%clk 0:01:07]} 31. Kf2 {[%clk 0:00:50]}  h4 {[%clk 0:01:06]} 32. Rc7 {[%clk 0:00:42]}  R8d7 {[%clk 0:00:58]} 33. Rc3 {[%clk 0:00:41]}  Rd8 {[%clk 0:00:55]} 34. Rc7 {[%clk 0:00:41]}  Bf5 {[%clk 0:00:50]} 35. Ra7 {[%clk 0:00:31]}  Be4 {[%clk 0:00:42]} 36. Rxa6 {[%clk 0:00:22]}  Kf5 {[%clk 0:00:42]} 37. Ra7 {[%clk 0:00:21]}  R8d7 {[%clk 0:00:40]} 38. Rxd7 {[%clk 0:00:15]}  Rxd7 {[%clk 0:00:41]} 39. g4+ {[%clk 0:00:15]}  Kxf4 {[%clk 0:00:38]} 40. a4 {[%clk 0:00:15]}  Rc7 {[%clk 0:00:38]} 41. a5 {[%clk 0:00:13]}  Ke5 {[%clk 0:00:31]} 42. axb6 {[%clk 0:00:10]}  Rb7 {[%clk 0:00:32]} 0-1


[Site "https://www.chess.com"]

[Event "Titled Tuesday Blitz July 20 2021"]
[White "Martins, Igor Carvalho Ribeiro"]
[Black "Chernov, Mikhail"]
[WhiteFideId "2162962"]
[BlackFideId "24143170"]
[WhiteElo "2523"]
[BlackElo "2244"]
[Result "1-0"]
[Round "05"]
[TimeControl "180+1"]
[Date "2021.07.21"]
[WhiteClock "0:00:19"]
[BlackClock "0:00:26"]

1. Nf3 {[%clk 0:02:28]}  Nc6 {[%clk 0:02:56]} 2. e4 {[%clk 0:02:28]}  g6 {[%clk 0:02:52]} 3. d4 {[%clk 0:02:27]}  Bg7 {[%clk 0:02:53]} 4. d5 {[%clk 0:02:27]}  Nb8 {[%clk 0:02:51]} 5. c4 {[%clk 0:02:27]}  d6 {[%clk 0:02:51]} 6. Be2 {[%clk 0:02:27]}  Nf6 {[%clk 0:02:50]} 7. Nc3 {[%clk 0:02:26]}  O-O {[%clk 0:02:50]} 8. O-O {[%clk 0:02:26]}  c5 {[%clk 0:02:50]} 9. h3 {[%clk 0:02:20]}  Na6 {[%clk 0:02:47]} 10. Bf4 {[%clk 0:02:19]}  Nc7 {[%clk 0:02:47]} 11. a4 {[%clk 0:02:19]}  a6 {[%clk 0:02:45]} 12. a5 {[%clk 0:02:17]}  Rb8 {[%clk 0:02:45]} 13. Qc2 {[%clk 0:02:16]}  b5 {[%clk 0:02:45]} 14. axb6 {[%clk 0:02:15]}  Rxb6 {[%clk 0:02:45]} 15. b3 {[%clk 0:02:14]}  Bd7 {[%clk 0:02:31]} 16. Ra3 {[%clk 0:02:12]}  Qb8 {[%clk 0:02:30]} 17. e5 {[%clk 0:02:04]}  Nfe8 {[%clk 0:02:08]} 18. Bd3 {[%clk 0:01:59]}  Bc8 {[%clk 0:01:53]} 19. Re1 {[%clk 0:01:58]}  Qb7 {[%clk 0:01:50]} 20. Na4 {[%clk 0:01:55]}  Rb4 {[%clk 0:01:50]} 21. Bd2 {[%clk 0:01:48]}  dxe5 {[%clk 0:01:39]} 22. Nxc5 {[%clk 0:01:47]}  Qb6 {[%clk 0:01:35]} 23. Na4 {[%clk 0:01:45]}  Qb8 {[%clk 0:01:33]} 24. Nxe5 {[%clk 0:01:39]}  Bxe5 {[%clk 0:01:28]} 25. Rxe5 {[%clk 0:01:39]}  Rb7 {[%clk 0:01:28]} 26. Rxe7 {[%clk 0:01:22]}  Nd6 {[%clk 0:01:27]} 27. Re1 {[%clk 0:01:15]}  Bf5 {[%clk 0:01:21]} 28. Bf4 {[%clk 0:01:11]}  Qd8 {[%clk 0:01:15]} 29. Nc5 {[%clk 0:01:07]}  Bxd3 {[%clk 0:01:12]} 30. Qxd3 {[%clk 0:01:06]}  Rb6 {[%clk 0:01:13]} 31. Qc3 {[%clk 0:01:01]}  Ncb5 {[%clk 0:01:07]} 32. cxb5 {[%clk 0:00:52]}  Nxb5 {[%clk 0:01:08]} 33. Qa5 {[%clk 0:00:41]}  Nxa3 {[%clk 0:01:03]} 34. Qxa3 {[%clk 0:00:41]}  Qxd5 {[%clk 0:01:03]} 35. Be3 {[%clk 0:00:32]}  Rb5 {[%clk 0:01:01]} 36. b4 {[%clk 0:00:30]}  Ra8 {[%clk 0:00:53]} 37. Qc3 {[%clk 0:00:22]}  Qc6 {[%clk 0:00:28]} 38. Bh6 {[%clk 0:00:21]}  f6 {[%clk 0:00:28]} 39. Qc4+ {[%clk 0:00:19]}  Kh8 {[%clk 0:00:26]} 40. Qf7 {[%clk 0:00:19]}  Rg8 {[%clk 0:00:26]} 41. Re7 {[%clk 0:00:19]} 1-0


[Site "https://www.chess.com"]

[Event "Titled Tuesday Blitz July 20 2021"]
[White "Molina, Roberto Junio Brito"]
[Black "Perez Gormaz, Matias"]
[WhiteFideId "2109450"]
[BlackFideId "3406342"]
[WhiteElo "2402"]
[BlackElo "2414"]
[Result "0-1"]
[Round "05"]
[TimeControl "180+1"]
[Date "2021.07.21"]
[WhiteClock "0:00:07"]
[BlackClock "0:00:17"]

1. d4 {[%clk 0:03:00]}  d5 {[%clk 0:02:56]} 2. Nf3 {[%clk 0:03:01]}  Nf6 {[%clk 0:02:56]} 3. e3 {[%clk 0:03:01]}  e6 {[%clk 0:02:56]} 4. Bd3 {[%clk 0:03:01]}  c5 {[%clk 0:02:55]} 5. c3 {[%clk 0:03:01]}  Nc6 {[%clk 0:02:55]} 6. O-O {[%clk 0:03:01]}  Bd6 {[%clk 0:02:55]} 7. Nbd2 {[%clk 0:03:02]}  O-O {[%clk 0:02:56]} 8. dxc5 {[%clk 0:03:02]}  Bxc5 {[%clk 0:02:56]} 9. e4 {[%clk 0:03:02]}  Qc7 {[%clk 0:02:55]} 10. b4 {[%clk 0:03:00]}  Bb6 {[%clk 0:02:48]} 11. Bb2 {[%clk 0:02:58]}  h6 {[%clk 0:02:35]} 12. a3 {[%clk 0:02:54]}  Rd8 {[%clk 0:02:28]} 13. Qe2 {[%clk 0:02:53]}  e5 {[%clk 0:02:29]} 14. c4 {[%clk 0:02:50]}  dxc4 {[%clk 0:02:21]} 15. Nxc4 {[%clk 0:02:48]}  Nd4 {[%clk 0:02:17]} 16. Nxd4 {[%clk 0:02:39]}  Bxd4 {[%clk 0:02:16]} 17. Bxd4 {[%clk 0:02:33]}  Rxd4 {[%clk 0:02:17]} 18. Rac1 {[%clk 0:02:30]}  Bg4 {[%clk 0:02:12]} 19. f3 {[%clk 0:02:28]}  Be6 {[%clk 0:02:12]} 20. Nb2 {[%clk 0:02:14]}  Qb6 {[%clk 0:02:08]} 21. Kh1 {[%clk 0:02:11]}  Rad8 {[%clk 0:02:08]} 22. Rc3 {[%clk 0:02:03]}  Qd6 {[%clk 0:01:40]} 23. Rfc1 {[%clk 0:01:58]}  Nh5 {[%clk 0:01:20]} 24. Qe3 {[%clk 0:01:21]}  Nf4 {[%clk 0:01:17]} 25. Bf1 {[%clk 0:01:21]}  Rd2 {[%clk 0:01:11]} 26. Nc4 {[%clk 0:01:18]}  Bxc4 {[%clk 0:01:11]} 27. Rxc4 {[%clk 0:01:19]}  Qg6 {[%clk 0:00:45]} 28. Rc8 {[%clk 0:00:46]}  Kh7 {[%clk 0:00:32]} 29. Rxd8 {[%clk 0:00:45]}  Rxd8 {[%clk 0:00:24]} 30. Qxa7 {[%clk 0:00:40]}  Rd2 {[%clk 0:00:23]} 31. g3 {[%clk 0:00:32]}  Qh5 {[%clk 0:00:19]} 32. Qg1 {[%clk 0:00:07]}  Qxf3+ {[%clk 0:00:19]} 33. Bg2 {[%clk 0:00:07]}  Rxg2 {[%clk 0:00:17]} 0-1


[Site "https://www.chess.com"]

[Event "Titled Tuesday Blitz July 20 2021"]
[White "Nakamura, Hikaru"]
[Black "Pichot, Alan"]
[WhiteFideId "2016192"]
[BlackFideId "110973"]
[WhiteElo "2900"]
[BlackElo "2622"]
[Result "1-0"]
[Round "05"]
[TimeControl "180+1"]
[Date "2021.07.20"]
[WhiteClock "0:00:09"]
[BlackClock "0:00:01"]

1. Nf3 {[%clk 0:03:00]}  Nf6 {[%clk 0:03:00]} 2. b3 {[%clk 0:02:58]}  d5 {[%clk 0:02:58]} 3. Bb2 {[%clk 0:02:58]}  Bf5 {[%clk 0:02:59]} 4. Nh4 {[%clk 0:02:56]}  Bg4 {[%clk 0:02:57]} 5. d3 {[%clk 0:02:55]}  e6 {[%clk 0:02:57]} 6. h3 {[%clk 0:02:55]}  Bh5 {[%clk 0:02:57]} 7. g4 {[%clk 0:02:54]}  Bg6 {[%clk 0:02:57]} 8. e3 {[%clk 0:02:53]}  a5 {[%clk 0:02:57]} 9. a3 {[%clk 0:02:53]}  a4 {[%clk 0:02:56]} 10. b4 {[%clk 0:02:53]}  c5 {[%clk 0:02:54]} 11. bxc5 {[%clk 0:02:53]}  Bxc5 {[%clk 0:02:55]} 12. Nd2 {[%clk 0:02:53]}  Nc6 {[%clk 0:02:53]} 13. Bg2 {[%clk 0:02:53]}  Qe7 {[%clk 0:02:49]} 14. O-O {[%clk 0:02:49]}  O-O {[%clk 0:02:46]} 15. d4 {[%clk 0:02:48]}  Bd6 {[%clk 0:02:40]} 16. Nxg6 {[%clk 0:02:49]}  hxg6 {[%clk 0:02:41]} 17. c4 {[%clk 0:02:49]}  dxc4 {[%clk 0:02:31]} 18. Nxc4 {[%clk 0:02:48]}  Bc7 {[%clk 0:02:32]} 19. Qe2 {[%clk 0:02:38]}  Rfc8 {[%clk 0:02:27]} 20. Rfc1 {[%clk 0:02:37]}  Nd5 {[%clk 0:02:26]} 21. Rab1 {[%clk 0:02:36]}  Rab8 {[%clk 0:02:23]} 22. Ba1 {[%clk 0:02:23]}  b5 {[%clk 0:01:55]} 23. Nd2 {[%clk 0:02:23]}  Qxa3 {[%clk 0:01:55]} 24. Rxc6 {[%clk 0:02:12]}  Bh2+ {[%clk 0:01:54]} 25. Kxh2 {[%clk 0:02:13]}  Rxc6 {[%clk 0:01:55]} 26. Rxb5 {[%clk 0:02:04]}  Qd6+ {[%clk 0:01:54]} 27. f4 {[%clk 0:01:59]}  Rxb5 {[%clk 0:01:37]} 28. Qxb5 {[%clk 0:02:00]}  Rc2 {[%clk 0:01:37]} 29. Ne4 {[%clk 0:01:46]}  Qc6 {[%clk 0:01:26]} 30. Qa5 {[%clk 0:01:12]}  f6 {[%clk 0:00:59]} 31. Kg3 {[%clk 0:01:00]}  Ra2 {[%clk 0:00:50]} 32. Bf3 {[%clk 0:00:20]}  Qc1 {[%clk 0:00:34]} 33. g5 {[%clk 0:00:12]}  Qg1+ {[%clk 0:00:19]} 34. Kh4 {[%clk 0:00:12]}  Qxe3 {[%clk 0:00:19]} 35. gxf6 {[%clk 0:00:09]}  Qxf4+ {[%clk 0:00:17]} 36. Bg4 {[%clk 0:00:10]}  Nxf6 {[%clk 0:00:06]} 37. Qd8+ {[%clk 0:00:09]}  Kh7 {[%clk 0:00:07]} 38. Ng5+ {[%clk 0:00:09]}  Kh6 {[%clk 0:00:01]} 39. Qh8+ {[%clk 0:00:09]} 1-0


[Site "https://www.chess.com"]

[Event "Titled Tuesday Blitz July 20 2021"]
[White "Narayanan.S.L"]
[Black "Chiu, Isaac"]
[WhiteFideId "5058422"]
[BlackFideId "30900654"]
[WhiteElo "2617"]
[BlackElo "2117"]
[Result "1-0"]
[Round "05"]
[TimeControl "180+1"]
[Date "2021.07.20"]
[WhiteClock "0:01:12"]
[BlackClock "0:00:09"]

1. b3 {[%clk 0:02:59]}  e5 {[%clk 0:02:59]} 2. Bb2 {[%clk 0:03:00]}  Nc6 {[%clk 0:03:00]} 3. e3 {[%clk 0:03:00]}  Nf6 {[%clk 0:03:00]} 4. Bb5 {[%clk 0:03:00]}  Bd6 {[%clk 0:02:59]} 5. Na3 {[%clk 0:03:00]}  e4 {[%clk 0:02:59]} 6. f3 {[%clk 0:02:59]}  O-O {[%clk 0:02:45]} 7. fxe4 {[%clk 0:02:49]}  Nxe4 {[%clk 0:02:46]} 8. Nf3 {[%clk 0:02:49]}  Ng5 {[%clk 0:02:29]} 9. O-O {[%clk 0:02:39]}  Nxf3+ {[%clk 0:02:24]} 10. Qxf3 {[%clk 0:02:39]}  Qh4 {[%clk 0:02:24]} 11. g3 {[%clk 0:02:38]}  Qg5 {[%clk 0:02:17]} 12. Be2 {[%clk 0:02:35]}  Be5 {[%clk 0:02:12]} 13. d4 {[%clk 0:02:33]}  Bf6 {[%clk 0:02:11]} 14. Nb5 {[%clk 0:02:29]}  Bd8 {[%clk 0:02:07]} 15. d5 {[%clk 0:02:24]}  Ne5 {[%clk 0:02:02]} 16. Qf4 {[%clk 0:02:25]}  d6 {[%clk 0:01:49]} 17. Nxc7 {[%clk 0:02:18]}  Rb8 {[%clk 0:01:48]} 18. Nb5 {[%clk 0:02:15]}  Bh3 {[%clk 0:01:40]} 19. Nxd6 {[%clk 0:02:12]}  Ng6 {[%clk 0:01:25]} 20. Qd4 {[%clk 0:01:56]}  f6 {[%clk 0:01:02]} 21. Ne4 {[%clk 0:01:55]}  Qh6 {[%clk 0:00:58]} 22. c4 {[%clk 0:01:56]}  Bxf1 {[%clk 0:00:55]} 23. Rxf1 {[%clk 0:01:57]}  Ne5 {[%clk 0:00:51]} 24. c5 {[%clk 0:01:57]}  Re8 {[%clk 0:00:39]} 25. Nd6 {[%clk 0:01:55]}  Rf8 {[%clk 0:00:35]} 26. Nf5 {[%clk 0:01:55]}  Qg6 {[%clk 0:00:33]} 27. d6 {[%clk 0:01:55]}  Rc8 {[%clk 0:00:28]} 28. Qd5+ {[%clk 0:01:50]}  Kh8 {[%clk 0:00:28]} 29. Nh4 {[%clk 0:01:14]}  Qf7 {[%clk 0:00:18]} 30. Qxf7 {[%clk 0:01:13]}  Nxf7 {[%clk 0:00:18]} 31. b4 {[%clk 0:01:14]}  b6 {[%clk 0:00:18]} 32. Bg4 {[%clk 0:01:14]}  Rb8 {[%clk 0:00:16]} 33. Bd4 {[%clk 0:01:14]}  bxc5 {[%clk 0:00:16]} 34. bxc5 {[%clk 0:01:15]}  Nxd6 {[%clk 0:00:10]} 35. cxd6 {[%clk 0:01:15]}  Bb6 {[%clk 0:00:10]} 36. d7 {[%clk 0:01:13]}  Rbd8 {[%clk 0:00:11]} 37. Rc1 {[%clk 0:01:13]}  g6 {[%clk 0:00:10]} 38. Be6 {[%clk 0:01:13]}  Kg7 {[%clk 0:00:10]} 39. Nf3 {[%clk 0:01:13]}  Bxd4 {[%clk 0:00:10]} 40. Nxd4 {[%clk 0:01:13]}  f5 {[%clk 0:00:09]} 41. Nc6 {[%clk 0:01:12]} 1-0


[Site "https://www.chess.com"]